[Event "ISR-ch Youth 2019"]
[Site "Jerusalem"]
[Date "2019.04.17"]
[Round "8.12"]
[White "Frenkel, Avigail"]
[Black "Shatil, Or"]
[Result "0-1"]
[ECO "B21"]
[WhiteElo "1124"]
[BlackElo "1191"]
[Annotator "NA"]
[PlyCount "148"]
[EventDate "2019.04.11"]
[EventType "swiss"]
[EventCountry "ISR"]
[SourceTitle "playchess.com"]
[Source "ChessBase"]
[SourceQuality "1"]
[TimeControl "5400+30"]

1. e4 {[%emt 0:00:00]} c5 {[%emt 0:00:00]} 2. d4 {[%emt 1:31:00]} cxd4 {[%emt 0:00:00]} 3. c3 {[%emt 0:00:00]} dxc3 {[%emt 0:00:00]} 4. Nxc3 {[%emt 0:00:00]} Nc6 {[%emt 1:32:00]} 5. Nf3 {[%emt 0:00:16]} e6 {[%emt 0:00:00]} 6. Bd3 {[%emt 0:01:21]} Nge7 {[%emt 0:00:59]} 7. O-O {[%emt 1:31:53]} Ng6 {[%emt 0:00:16]} 8. Re1 {[%emt 0:03:20]} Be7 {[%emt 0:01:26]} 9. b3 {[%emt 0:03:49]} O-O {[%emt 0:01:49]} 10. Bb2 {[%emt 0:00:52]} b6 {[%emt 0:06:37]} 11. Qe2 {[%emt 0:01:31]} Nf4 {[%emt 0:01:18]} 12. Qd1 {[%emt 0:02:48]} Nxd3 {[%emt 0:01:05]} 13. Qxd3 {[%emt 0:00:45]} Nb4 {[%emt 0:06:23]} 14. Qd2 {[%emt 0:03:34]} Ba6 {[%emt 0:02:43]} 15. Ne5 {[%emt 0:06:49]} Bf6 {[%emt 0:01:52]} 16. Nxd7 {[%emt 0:03:07]} Bg5 {[%emt 0:05:16]} 17. f4 {[%emt 0:08:16]} Bxf4 {[%emt 0:01:24]} 18. Qxf4 {[%emt 0:00:23]} Qxd7 {[%emt 0:00:10]} 19. Rad1 {[%emt 0:05:33]} Qe7 {[%emt 0:03:17]} 20. Re3 {[%emt 0:06:16]} e5 {[%emt 0:09:24]} 21. Qg3 {[%emt 0:50:49]} Nc2 {[%emt 0:02:43]} 22. Rf3 {[%emt 0:07:58]} Nd4 {[%emt 0:02:17]} 23. Rf2 {[%emt 0:03:12]} Qc5 {[%emt 0:06:01]} 24. Kh1 {[%emt 0:03:14]} Bb7 {[%emt 0:11:23]} 25. h4 {[%emt 0:07:23]} h6 {[%emt 0:07:11]} 26. Bc1 {[%emt 0:01:55]} Kh7 {[%emt 0:01:04]} 27. Nb1 {[%emt 0:06:51]} Qc7 {[%emt 0:04:41]} 28. Ba3 {[%emt 0:01:01]} Rfc8 {[%emt 0:01:16]} 29. Nd2 {[%emt 0:00:38]} Nb5 {[%emt 0:04:23]} 30. Bb2 {[%emt 0:00:42]} f6 {[%emt 0:02:51]} 31. h5 {[%emt 0:01:10]} Qc2 {[%emt 0:04:27]} 32. Qg6+ {[%emt 0:02:17]} Kh8 {[%emt 0:00:47]} 33. Rb1 {[%emt 0:00:55]} Nc3 {[%emt 0:01:04]} 34. Bxc3 {[%emt 0:01:17]} Rxc3 {[%emt 0:00:57]} 35. Rbf1 {[%emt 0:03:02]} Rd3 {[%emt 0:01:18]} 36. Nc4 {[%emt 0:00:55]} Qc3 {[%emt 0:01:09]} 37. Rf3 {[%emt 0:02:47]} Rxf3 {[%emt 0:01:04]} 38. Rxf3 {[%emt 0:00:27]} Qe1+ {[%emt 0:00:24]} 39. Kh2 {[%emt 0:00:17]} Bxe4 {[%emt 0:00:47]} 40. Qg4 {[%emt 0:01:06]} Bxf3 {[%emt 0:00:29]} 41. gxf3 {[%emt 0:00:26]} Qf2+ {[%emt 0:00:25]} 42. Kh3 {[%emt 0:09:09]} Qd4 {[%emt 0:01:17]} 43. Qe6 {[%emt 0:00:40]} Rd8 {[%emt 0:00:44]} 44. Qe7 {[%emt 0:00:44]} Qd7+ {[%emt 0:00:28]} 45. Qxd7 {[%emt 0:00:31]} Rxd7 {[%emt 0:00:07]} 46. b4 {[%emt 0:00:30]} b5 {[%emt 0:00:17]} 47. Na5 {[%emt 0:00:41]} Rd2 {[%emt 0:00:22]} 48. Kg4 {[%emt 0:01:12]} Rxa2 {[%emt 0:00:19]} 49. Nc6 {[%emt 0:00:18]} Kg8 {[%emt 0:00:45]} 50. Kf5 {[%emt 0:00:45]} Kf7 {[%emt 0:01:02]} 51. Nd8+ {[%emt 0:00:46]} Kg8 {[%emt 0:00:39]} 52. Kg6 {[%emt 0:00:34]} Rg2+ {[%emt 0:00:06]} 53. Kf5 {[%emt 0:00:20]} Rg5+ {[%emt 0:00:10]} 54. Ke6 {[%emt 0:00:32]} Rxh5 {[%emt 0:00:27]} 55. Nc6 {[%emt 0:00:15]} a6 {[%emt 0:01:27]} 56. Kd5 {[%emt 0:00:38]} Rg5 {[%emt 0:00:30]} 57. Kd6 {[%emt 0:01:05]} h5 {[%emt 0:00:14]} 58. Kc7 {[%emt 0:00:25]} h4 {[%emt 0:00:06]} 59. Kb6 {[%emt 0:01:05]} h3 {[%emt 0:00:10]} 60. Kxa6 {[%emt 0:00:08]} h2 {[%emt 0:00:05]} 61. Kxb5 {[%emt 0:00:14]} h1=Q {[%emt 0:00:04]} 62. Ka6 {[%emt 0:00:35]} Qxf3 {[%emt 0:11:01]} 63. b5 {[%emt 0:00:44]} Qa3+ {[%emt 0:00:19]} 64. Kb7 {[%emt 0:00:09]} e4 {[%emt 0:00:28]} 65. b6 {[%emt 0:00:26]} Rb5 {[%emt 0:00:47]} 66. Nd4 {[%emt 0:00:40]} Rb2 {[%emt 0:00:32]} 67. Kc6 {[%emt 0:01:00]} Qa6 {[%emt 0:00:29]} 68. Kd5 {[%emt 0:00:37]} Qxb6 {[%emt 0:00:27]} 69. Kxe4 {[%emt 0:00:09]} Rb4 {[%emt 0:00:23]} 70. Kf5 {[%emt 0:00:21]} Qxd4 {[%emt 0:00:30]} 71. Ke6 {[%emt 0:00:35]} Qe5+ {[%emt 0:00:24]} 72. Kd7 {[%emt 0:00:17]} Qd5+ {[%emt 0:00:29]} 73. Kc7 {[%emt 0:00:32]} Rb7+ {[%emt 0:00:09]} 74. Kc8 {[%emt 0:00:26]} Qd7# {[%emt 0:00:05]} 0-1

[Event "ISR-ch Youth 2019"]
[Site "Jerusalem"]
[Date "2019.04.18"]
[Round "9.1"]
[White "Zholti, Alon"]
[Black "Globus, Or"]
[Result "1/2-1/2"]
[ECO "D87"]
[WhiteElo "2023"]
[BlackElo "2346"]
[Annotator "NA RC"]
[PlyCount "107"]
[EventDate "2019.04.11"]
[EventType "swiss"]
[EventCountry "ISR"]
[SourceTitle "playchess.com"]
[Source "ChessBase"]
[SourceQuality "1"]
[TimeControl "5400+30"]

1. d4 {[%emt 0:00:00]} Nf6 {[%emt 0:00:00]} 2. c4 {[%emt 0:00:00]} g6 {[%emt 0:00:00]} 3. Nc3 {[%emt 0:00:00]} d5 {[%emt 0:00:00]} 4. cxd5 {[%emt 0:00:00]} Nxd5 {[%emt 0:00:00]} 5. e4 {[%emt 0:00:00]} Nxc3 {[%emt 0:00:00]} 6. bxc3 {[%emt 0:00:00]} Bg7 {[%emt 0:00:14]} 7. Bc4 {[%emt 0:00:00]} c5 {[%emt 0:00:07]} 8. Ne2 {[%emt 0:00:00]} O-O {[%emt 0:00:05]} 9. O-O {[%emt 0:00:00]} Nc6 {[%emt 0:00:03]} 10. Be3 {[%emt 0:00:00]} b6 {[%emt 0:00:12]} 11. dxc5 {[%emt 0:01:06] D87: Exchange Grünfeld: Classical Line: Variations without ...cxd4} (11. Rc1 Bb7 12. Qd2 e6 13. Rfd1 Rc8 14. f3 cxd4 15. cxd4 Qd6 16. Bh6 Bxh6 17. Qxh6 Na5 18. Bd3 Rxc1 19. Qxc1 {½-½ (50) Nakamura,H (2746)-Vachier Lagrave,M (2781) London 2018}) 11... Qc7 {[%emt 0:00:10]} 12. Nd4 {[%emt 0:05:42]} Ne5 {[%emt 0:00:08]} 13. Nb5 {[%emt 0:01:59]} Qb8 {[%emt 0:00:05]} 14. Be2 {[%emt 0:06:05]} bxc5 {[%emt 0:04:53]} 15. f4 {[%emt 0:09:12] [#]} Nd7 $146 {[%emt 0:16:46]} ({Predecessor:} 15... Ng4 $5 {[%cal Rg4e3]} 16. Bxc5 (16. Bxg4 Bxg4 17. Qxg4 Qxb5 $11) 16... a6 $11 17. Na3 Qc7 18. Bd4 e5 19. fxe5 Nxe5 {½-½ (31) Wang,Y (2679)-Xu,X (2581) Hangzhou 2018}) 16. Rb1 {[%emt 0:02:24]} a6 {[%emt 0:02:35]} 17. Na3 {[%emt 0:00:13]} Qc7 {[%emt 0:00:24]} 18. Qc2 {[%emt 0:03:11]} Bb7 {[%emt 0:01:15]} 19. Nc4 {[%emt 0:01:28]} Rab8 {[%emt 0:05:01]} 20. Rfd1 {[%emt 0:03:28]} Bc6 {[%emt 0:03:00]} 21. a4 {[%emt 0:07:32]} Rxb1 {[%emt 0:03:16]} 22. Rxb1 {[%emt 0:00:12]} Rb8 {[%emt 0:04:18]} 23. Rxb8+ {[%emt 0:03:02]} Qxb8 {[%emt 0:00:09]} 24. Na5 {[%emt 0:01:24]} Ba8 {[%emt 0:07:41]} 25. Qd3 {[%emt 0:28:02]} Qc7 {[%emt 0:01:27]} 26. Nc4 {[%emt 0:06:03]} Qc6 {[%emt 0:08:00]} 27. a5 {[%emt 0:00:52]} Qxe4 {[%emt 0:02:56]} 28. Qxe4 {[%emt 0:00:24]} Bxe4 {[%emt 0:00:03]} 29. Nb6 {[%emt 0:00:02]} Nb8 {[%emt 0:01:50]} 30. Na4 {[%emt 0:07:38]} Bc6 {[%emt 0:01:23]} 31. Nxc5 {[%emt 0:00:08]} Bxc3 {[%emt 0:00:11]} 32. Nxa6 {[%emt 0:00:17]} Nxa6 {[%emt 0:00:07]} 33. Bxa6 {[%emt 0:00:02]} Bxa5 {[%emt 0:00:05]} 34. Bc4 {[%emt 0:02:27]} Bc3 {[%emt 0:00:37]} 35. Kf2 {[%emt 0:00:20]} Kg7 {[%emt 0:00:23]} 36. g4 {[%emt 0:00:55]} h6 {[%emt 0:01:53]} 37. h4 {[%emt 0:01:29]} e6 {[%emt 0:00:55]} 38. g5 {[%emt 0:01:14]} h5 {[%emt 0:00:45]} 39. Bc5 $15 {[%emt 0:01:25]} Bd5 {[%emt 0:00:30]} 40. Bd3 {[%emt 0:00:48]} f6 {[%emt 0:02:43]} 41. Be7 {[%emt 0:02:45]} fxg5 {[%emt 0:02:17]} 42. Bxg5 {[%emt 0:00:52]} Kf7 {[%emt 0:01:29]} 43. Bc2 {[%emt 0:00:12]} Bd4+ {[%emt 0:00:42]} 44. Kg3 {[%emt 0:00:10]} Bh1 {[%emt 0:01:23]} 45. Bd3 {[%emt 0:00:12]} Bc6 {[%emt 0:00:26]} 46. Bc2 {[%emt 0:00:06]} Bd5 {[%emt 0:00:32]} 47. Bd3 {[%emt 0:00:06]} Bb3 {[%emt 0:00:07]} 48. Bb1 {[%emt 0:00:48]} Bd1 {[%emt 0:00:08]} 49. Bd3 {[%emt 0:00:07]} Bg4 {[%emt 0:00:04]} 50. Be4 {[%emt 0:00:24]} Bf5 {[%emt 0:00:52]} 51. Bc6 {[%emt 0:00:02]} Bg4 {[%emt 0:00:59]} 52. Be4 {[%emt 0:00:03]} Bc3 {[%emt 0:00:04]} 53. Kf2 {[%emt 0:01:03]} Bd2 {[%emt 0:01:01]} 54. Bd3 {[%emt 0:00:35]} 1/2-1/2

[Event "ISR-ch Youth 2019"]
[Site "Jerusalem"]
[Date "2019.04.18"]
[Round "9.2"]
[White "Milikow, Yoav"]
[Black "Solomon, Asif"]
[Result "1/2-1/2"]
[ECO "E73"]
[WhiteElo "2256"]
[BlackElo "2126"]
[Annotator "RC"]
[PlyCount "86"]
[EventDate "2019.04.11"]
[EventType "swiss"]
[EventCountry "ISR"]
[SourceTitle "playchess.com"]
[Source "ChessBase"]
[SourceQuality "1"]
[TimeControl "5400+30"]

1. d4 {[%emt 0:00:00]} Nf6 {[%emt 0:00:00]} 2. c4 {[%emt 0:00:00]} g6 {[%emt 0:00:00]} 3. Nc3 {[%emt 0:00:00]} Bg7 {[%emt 0:00:00]} 4. e4 {[%emt 0:00:03]} d6 {[%emt 0:00:00]} 5. Be2 {[%emt 0:00:05]} O-O {[%emt 0:00:00]} 6. Be3 {[%emt 0:00:08]} c5 {[%emt 0:00:00]} 7. d5 {[%emt 0:00:06]} e6 {[%emt 0:00:37]} 8. Nf3 {[%emt 0:00:20]} exd5 {[%emt 0:00:03]} 9. cxd5 {[%emt 0:00:08]} Bg4 {[%emt 0:00:41]} 10. Nd2 {[%emt 0:00:13]} Bxe2 {[%emt 0:00:48]} 11. Qxe2 {[%emt 0:00:04]} a6 {[%emt 0:06:07]} 12. a4 {[%emt 0:00:15]} Nbd7 {[%emt 0:01:24]} 13. O-O {[%emt 0:04:09]} Nh5 {[%emt 0:02:37]} 14. g4 {[%emt 0:11:15]} Nhf6 {[%emt 0:10:50]} 15. f4 {[%emt 0:01:07]} Qc7 {[%emt 0:04:47]} 16. Rae1 {[%emt 0:13:48]} Rfe8 {[%emt 0:04:37]} 17. Bf2 {[%emt 0:06:50]} b5 {[%emt 0:08:39]} 18. axb5 {[%emt 0:00:36]} axb5 {[%emt 0:00:04]} 19. Nxb5 {[%emt 0:01:24]} Qb6 {[%emt 0:01:26]} 20. Na3 {[%emt 0:03:46]} Qxb2 {[%emt 0:21:55]} 21. Nac4 {[%emt 0:01:57]} Qb8 {[%emt 0:00:38]} 22. Qf3 {[%emt 0:01:04]} Nb6 {[%emt 0:05:05]} 23. Nxb6 {[%emt 0:01:58]} Qxb6 {[%emt 0:00:11]} 24. e5 {[%emt 0:00:34]} dxe5 {[%emt 0:04:27]} 25. fxe5 {[%emt 0:00:07]} Nd7 {[%emt 0:00:05]} 26. Bg3 {[%emt 0:03:30]} Rf8 {[%emt 0:05:24]} 27. Nc4 {[%emt 0:01:04]} Qb4 {[%emt 0:00:33]} 28. Qd3 {[%emt 0:02:15]} Nb6 {[%emt 0:03:29]} 29. Rf4 {[%emt 0:02:45]} Bh6 {[%emt 0:02:56]} 30. Rfe4 {[%emt 0:06:32]} Nxc4 {[%emt 0:02:16]} 31. Rxc4 {[%emt 0:00:11]} Ra3 {[%emt 0:00:54]} 32. Qe4 {[%emt 0:00:37]} Qd2 {[%emt 0:00:56]} 33. Bf2 {[%emt 0:02:37]} f5 {[%emt 0:04:04]} 34. Qe2 {[%emt 0:01:56]} Qxd5 {[%emt 0:01:02]} 35. Bxc5 {[%emt 0:01:45]} Re3 {[%emt 0:02:17]} 36. Bxe3 {[%emt 0:00:33]} Bxe3+ {[%emt 0:00:02]} 37. Qxe3 {[%emt 0:00:10]} Qxc4 {[%emt 0:00:06]} 38. gxf5 {[%emt 0:00:43]} Rxf5 {[%emt 0:02:50]} 39. e6 {[%emt 0:02:54]} Qd5 {[%emt 0:00:15]} 40. h4 {[%emt 0:01:48]} Rf3 {[%emt 0:02:22]} 41. Qe5 {[%emt 0:02:04]} Qxe5 {[%emt 0:02:06]} 42. Rxe5 {[%emt 0:00:02]} Kf8 {[%emt 0:00:09]} 43. Ra5 {[%emt 0:01:11]} Ke7 {[%emt 0:00:55]} 1/2-1/2

[Event "ISR-ch Youth 2019"]
[Site "Jerusalem"]
[Date "2019.04.18"]
[Round "9.4"]
[White "Mizrahi, Ido"]
[Black "Levin, Guy"]
[Result "0-1"]
[ECO "A25"]
[WhiteElo "1957"]
[BlackElo "2059"]
[Annotator "NA RC"]
[PlyCount "82"]
[EventDate "2019.04.11"]
[EventType "swiss"]
[EventCountry "ISR"]
[SourceTitle "playchess.com"]
[Source "ChessBase"]
[SourceQuality "1"]
[TimeControl "5400+30"]

{[%evp 12,58,25,21,13,-5,5,0,0,12,16,6,9,-17,2,-66,-46,-49,32767,32767,32767,-66,-58,-39,-12,32767,32767,32767,32767,32767,32767,32767,32767,32767,-88,-110,-91,-80,-74,-90,-19,-63,-26,32767,-185,-202,-219,-193,-201]} 1. c4 {[%emt 0:00:00]} e5 {[%emt 0:00:00]} 2. g3 {[%emt 0:00:00]} Nf6 {[%emt 0:00:54]} 3. Bg2 {[%emt 0:00:00]} Nc6 {[%emt 0:00:34]} 4. Nc3 {[%emt 0:00:35]} Bb4 {[%emt 0:00:35]} 5. Nd5 {[%emt 0:04:39]} Bc5 {[%emt 0:02:59]} 6. a3 {[%emt 0:04:27]} Nxd5 {[%emt 0:00:32] A25: English Opening vs King's Indian with ...Nc6 but without early d3} (6... a5 7. e3 d6 8. Ne2 O-O 9. O-O Ba7 10. Nxf6+ Qxf6 11. Nc3 Qd8 12. Qc2 Ne7 13. f4 c6 14. f5 {0-1 (24) Lopez Martinez,J (2555)-Balogh,C (2632) Barcelona 2013}) 7. cxd5 {[%emt 0:00:18]} Ne7 {[%emt 0:01:29]} 8. e3 {[%emt 0:01:22]} c6 $146 {[%emt 0:04:36]} ({Predecessor:} 8... d6 9. Ne2 Bg4 10. h3 Bxe2 11. Qxe2 O-O 12. b4 Bb6 13. Bb2 a5 14. b5 a4 {½-½ (33) Muzychuk,M (2521)-Zhang,X (1946) Jiangmen 2018}) 9. b4 {[%emt 0:09:21]} Bd6 {[%emt 0:02:39]} 10. dxc6 {[%emt 0:01:40]} dxc6 {[%emt 0:01:30]} 11. Bb2 {[%emt 0:01:28]} O-O {[%emt 0:01:21]} 12. Ne2 {[%emt 0:04:26]} a5 {[%emt 0:07:18]} 13. bxa5 {[%emt 0:08:22]} (13. O-O $11) 13... Qxa5 {[%emt 0:02:27]} 14. O-O {[%emt 0:00:37]} Qb5 {[%emt 0:04:06]} 15. Rb1 {[%emt 0:06:24]} Qd3 {[%emt 0:05:29]} 16. Rc1 {[%emt 0:11:14]} Bg4 {[%emt 0:06:14]} 17. f3 {[%emt 0:02:25]} Be6 {[%emt 0:01:04]} 18. Rc3 {[%emt 0:06:29]} Qb5 {[%emt 0:01:15]} 19. Bc1 {[%emt 0:01:05]} Nd5 {[%emt 0:03:14]} 20. Rb3 {[%emt 0:01:33]} Qa6 {[%emt 0:00:01]} 21. Nc3 {[%emt 0:02:25]} Nb6 {[%emt 0:01:05]} 22. Rb1 {[%emt 0:00:10]} Nc4 {[%emt 0:06:31]} 23. Ne4 {[%emt 0:02:02]} Be7 {[%emt 0:01:35]} 24. a4 {[%emt 0:03:37]} Rfd8 {[%emt 0:04:03]} 25. Qc2 {[%emt 0:00:42]} f5 {[%emt 0:02:04]} ({Black should try} 25... Rd7 $17 26. d3 Na3 27. Bxa3 Bxa3) 26. Nc3 {[%emt 0:00:29]} Rab8 {[%emt 0:07:26]} 27. Rd1 {[%emt 0:04:16] [#]} b5 $1 {[%emt 0:01:19]} 28. axb5 {[%emt 0:00:01]} cxb5 {[%emt 0:00:01]} 29. d3 {[%emt 0:04:16]} Na5 $19 {[%emt 0:01:35]} 30. Bd2 {[%emt 0:08:20]} b4 {[%emt 0:03:09]} 31. Ne2 {[%emt 0:05:56]} Qxd3 {[%emt 0:02:17]} 32. Qc7 {[%emt 0:04:43]} Qxe2 {[%emt 0:00:27]} 33. Qxe7 {[%emt 0:00:09]} Bb3 {[%emt 0:02:09]} 34. Bf1 {[%emt 0:02:23]} Qxf3 {[%emt 0:00:00]} 35. Bg2 {[%emt 0:00:17]} Qh5 {[%emt 0:00:00]} 36. Re1 {[%emt 0:01:04]} Rxd2 {[%emt 0:00:34]} 37. Qxe5 {[%emt 0:00:22]} Nc6 {[%emt 0:03:25]} 38. Qc5 {[%emt 0:00:49]} Rc2 {[%emt 0:05:36]} 39. Qd6 {[%emt 0:00:31]} Rd8 {[%emt 0:00:28]} 40. Qc7 {[%emt 0:00:29]} Rxg2+ {[%emt 0:00:17]} 41. Kxg2 {[%emt 0:00:29]} Rd2+ {[%emt 0:00:08]} 0-1

[Event "ISR-ch Youth 2019"]
[Site "Jerusalem"]
[Date "2019.04.18"]
[Round "9.5"]
[White "Khatib, Mahmood"]
[Black "Cohen, Elad"]
[Result "1/2-1/2"]
[ECO "D41"]
[WhiteElo "1604"]
[BlackElo "1828"]
[Annotator "NA RC"]
[PlyCount "123"]
[EventDate "2019.04.11"]
[EventType "swiss"]
[EventCountry "ISR"]
[SourceTitle "playchess.com"]
[Source "ChessBase"]
[SourceQuality "1"]
[TimeControl "5400+30"]

1. d4 {[%emt 0:00:00]} Nf6 {[%emt 0:00:00]} 2. Nf3 {[%emt 0:00:00]} d5 {[%emt 0:00:00]} 3. c4 {[%emt 0:00:15]} e6 {[%emt 0:00:04]} 4. Nc3 {[%emt 0:00:45]} c5 {[%emt 0:02:25]} 5. cxd5 {[%emt 0:00:43]} Nxd5 {[%emt 0:00:54]} 6. e4 {[%emt 0:01:46]} Nxc3 {[%emt 0:01:53]} 7. bxc3 {[%emt 0:00:15]} cxd4 {[%emt 0:01:21]} 8. cxd4 {[%emt 0:00:12]} Bb4+ {[%emt 0:04:08]} 9. Bd2 {[%emt 0:00:31]} Bxd2+ {[%emt 0:00:34]} 10. Qxd2 {[%emt 0:00:13]} O-O {[%emt 0:00:24]} 11. Be2 {[%emt 0:00:18]} b6 {[%emt 0:01:43]} 12. O-O {[%emt 0:01:05]} Bb7 {[%emt 0:00:31]} 13. Qe3 {[%emt 0:01:00]} Nd7 {[%emt 0:01:00]} 14. h3 {[%emt 1:29:57] D41: Queen's Gambit Declined: Semi-Tarrasch with 5 cxd5} (14. Rfd1 Qe7 15. a4 Rab8 16. a5 b5 17. d5 exd5 18. a6 Ba8 19. Qxa7 Rfd8 20. e5 b4 21. Rac1 b3 {½-½ (44) Lenic,L (2650)-Hera,I (2616) Hungary 2017}) 14... Nf6 {[%emt 1:22:03]} 15. Bd3 {[%emt 0:00:30]} Rc8 $146 {[%emt 0:00:30]} ({Predecessor:} 15... Qe7 16. Rfd1 Rac8 17. Rac1 Rxc1 18. Rxc1 Rc8 19. Rxc8+ Bxc8 20. Qf4 h6 21. Qc1 Bb7 {0-1 (40) Dinser,H (2130)-Basciu,S (2145) Imperia 2000}) 16. Rad1 {[%emt 0:00:30]} Rc3 {[%emt 0:00:30]} 17. Qd2 {[%emt 0:00:30]} Qc7 {[%emt 0:00:30]} 18. Rfe1 {[%emt 0:00:30]} Rc8 {[%emt 0:00:30]} 19. Re3 {[%emt 0:00:30]} Rc1 {[%emt 0:00:30]} 20. Rde1 {[%emt 0:00:00]} Qc3 {[%emt 0:00:30]} 21. Rxc1 {[%emt 0:01:00]} Qxc1+ {[%emt 0:01:00]} 22. Qe1 {[%emt 0:00:30]} Qxe1+ {[%emt 0:00:30]} 23. Rxe1 {[%emt 0:00:00]} Rc3 {[%emt 0:00:30]} 24. Bb1 {[%emt 0:00:00]} b5 {[%emt 0:00:00]} 25. Nd2 {[%emt 0:00:00]} Nd7 {[%emt 0:00:00]} 26. Nb3 {[%emt 0:02:00]} Kf8 {[%emt 0:00:00]} 27. Re3 {[%emt 0:00:00]} Rxe3 {[%emt 0:00:00]} 28. fxe3 {[%emt 0:00:00]} e5 {[%emt 0:00:00]} 29. Kf2 {[%emt 0:00:00]} Ke7 {[%emt 0:00:00]} 30. Bd3 {[%emt 0:00:00]} a6 {[%emt 0:00:00]} 31. Ke2 {[%emt 0:00:00]} Kd6 {[%emt 0:00:00]} 32. Kd2 {[%emt 0:00:00]} Kc7 {[%emt 0:00:00]} 33. Kc3 {[%emt 0:00:00]} Kb6 {[%emt 0:00:00]} 34. Kb4 {[%emt 0:00:00]} Ba8 {[%emt 0:00:00]} 35. d5 {[%emt 0:00:00]} f5 {[%emt 0:00:00]} 36. exf5 {[%emt 0:00:00]} Bxd5 {[%emt 0:00:00]} 37. e4 {[%emt 0:00:00]} Bxb3 {[%emt 0:00:00]} 38. axb3 {[%emt 0:00:00]} a5+ {[%emt 0:00:00]} 39. Kc3 {[%emt 0:00:00]} Kc5 {[%emt 0:00:00]} 40. Bc2 {[%emt 0:00:00]} b4+ {[%emt 0:00:00]} 41. Kd3 {[%emt 0:00:00]} Nb8 {[%emt 0:00:00]} 42. g4 {[%emt 0:00:00]} h6 {[%emt 0:00:00]} 43. h4 {[%emt 0:00:00]} Nc6 {[%emt 0:00:00]} (43... Nd7 $11 {remains equal.}) 44. g5 {[%emt 0:00:00]} hxg5 {[%emt 0:00:00]} 45. hxg5 {[%emt 0:00:00]} Ne7 {[%emt 0:00:00] [#]} 46. Bd1 $18 {[%emt 0:00:00]} ({Less strong is} 46. f6 gxf6 47. gxf6 Ng6 $14) 46... Kd6 {[%emt 0:00:00]} 47. Kc4 {[%emt 0:00:00]} g6 {[%emt 0:00:00]} 48. f6 {[%emt 0:00:00]} Nc6 {[%emt 0:00:00]} 49. Kb5 {[%emt 0:00:00]} Nd4+ {[%emt 0:00:00]} 50. Kxa5 {[%emt 0:00:00]} Ne6 {[%emt 0:00:00]} 51. Kxb4 {[%emt 0:12:30]} Nxg5 {[%emt 0:00:00]} 52. Kc4 {[%emt 0:00:00]} Nxe4 {[%emt 0:00:00]} 53. f7 {[%emt 0:00:00]} Ke7 {[%emt 0:00:00]} 54. Bc2 {[%emt 0:00:00]} Nd6+ {[%emt 0:00:00]} 55. Kd5 {[%emt 0:00:00]} Nxf7 {[%emt 0:00:00]} 56. Bxg6 {[%emt 0:00:00]} Nd6 {[%emt 0:00:00]} 57. Kxe5 {[%emt 0:00:00]} Kd7 {[%emt 0:00:00]} 58. Kd5 {[%emt 0:00:00]} Kc7 {[%emt 0:00:00]} 59. Bd3 {[%emt 0:00:00]} Nb7 {[%emt 0:00:00]} 60. b4 {[%emt 0:00:00]} Kb6 {[%emt 0:00:00]} 61. Kc4 {[%emt 0:00:00]} Nd6+ {[%emt 0:00:00]} 62. Kd4 {[%emt 0:05:30]} 1/2-1/2